[Event "Late-Titled-Tuesday-Blitz-April-30-2024"]
[Site "Chess.com"]
[Date "2024.04.30"]
[Round "5"]
[White "maurovargas01"]
[Black "ChEsper99"]
[Result "0-1"]
[WhiteElo "1954"]
[BlackElo "2235"]
[TimeControl "180+1"]
[EndTime "14:56:04 PDT"]
[Termination "ChEsper99 won by resignation"]

1. e4 {[%clk 0:02:59.9]} 1... d6 {[%clk 0:02:59.7]} 2. Nc3 {[%clk 0:02:58.7]}
2... Nf6 {[%clk 0:02:56.7]} 3. f4 {[%clk 0:02:59.5]} 3... g6 {[%clk 0:02:54.6]}
4. Nf3 {[%clk 0:02:57.5]} 4... Bg7 {[%clk 0:02:55]} 5. g3 {[%clk 0:02:51.9]}
5... O-O {[%clk 0:02:55]} 6. d3 {[%clk 0:02:45.9]} 6... c5 {[%clk 0:02:55.2]} 7.
Bg2 {[%clk 0:02:45]} 7... Nc6 {[%clk 0:02:55.5]} 8. O-O {[%clk 0:02:35.1]} 8...
Bg4 {[%clk 0:02:54.7]} 9. Qe1 {[%clk 0:02:32.6]} 9... Bxf3 {[%clk 0:02:53.9]}
10. Bxf3 {[%clk 0:02:32.3]} 10... Nd4 {[%clk 0:02:54.3]} 11. Bd1 {[%clk
0:02:32.3]} 11... b5 {[%clk 0:02:50.6]} 12. Ne2 {[%clk 0:02:31.3]} 12... Nd7
{[%clk 0:02:44.9]} 13. c3 {[%clk 0:02:29.2]} 13... Nxe2+ {[%clk 0:02:44.4]} 14.
Bxe2 {[%clk 0:02:27.8]} 14... a5 {[%clk 0:02:34.9]} 15. Bf3 {[%clk 0:02:16.4]}
15... Rb8 {[%clk 0:02:32.2]} 16. g4 {[%clk 0:02:14]} 16... b4 {[%clk 0:02:30.4]}
17. Bd2 {[%clk 0:02:10.7]} 17... bxc3 {[%clk 0:02:30.6]} 18. Bxc3 {[%clk
0:02:10.5]} 18... Bxc3 {[%clk 0:02:30.4]} 19. Qxc3 {[%clk 0:02:10]} 19... Qb6
{[%clk 0:02:28.6]} 20. Kg2 {[%clk 0:02:08.1]} 20... Qxb2+ {[%clk 0:02:27.9]} 21.
Qxb2 {[%clk 0:01:45.1]} 21... Rxb2+ {[%clk 0:02:28.8]} 22. Rf2 {[%clk
0:01:44.7]} 22... Rfb8 {[%clk 0:02:27]} 23. Bd1 {[%clk 0:01:38.5]} 23... Rxf2+
{[%clk 0:02:26]} 24. Kxf2 {[%clk 0:01:36.8]} 24... Rb2+ {[%clk 0:02:26.9]} 25.
Ke3 {[%clk 0:01:36.7]} 25... Rxh2 {[%clk 0:02:21.9]} 26. Bb3 {[%clk 0:01:36.5]}
26... Rb2 {[%clk 0:02:04.9]} 27. g5 {[%clk 0:01:35.4]} 27... Nb6 {[%clk
0:02:02.3]} 28. d4 {[%clk 0:01:31.2]} 28... a4 {[%clk 0:01:46.3]} 29. dxc5
{[%clk 0:01:23]} 29... dxc5 {[%clk 0:01:37.7]} 30. Bd1 {[%clk 0:01:20]} 30... e5
{[%clk 0:01:06.8]} 31. f5 {[%clk 0:01:17.7]} 31... c4 {[%clk 0:01:05.4]} 32. f6
{[%clk 0:01:17.2]} 32... Kf8 {[%clk 0:00:44.9]} 33. Bg4 {[%clk 0:01:16.1]} 33...
Ke8 {[%clk 0:00:38.5]} 34. Rd1 {[%clk 0:01:11.4]} 34... c3 {[%clk 0:00:35.6]}
35. Rd6 {[%clk 0:01:10.9]} 35... Nc4+ {[%clk 0:00:34.3]} 36. Kd3 {[%clk
0:00:58.8]} 36... Nxd6 {[%clk 0:00:35.2]} 37. Kxc3 {[%clk 0:00:58.8]} 37... Rxa2
{[%clk 0:00:34.1]} 38. Bf3 {[%clk 0:00:57.2]} 38... Ra3+ {[%clk 0:00:33.4]} 0-1

[Event "Late-Titled-Tuesday-Blitz-April-30-2024"]
[Site "Chess.com"]
[Date "2024.04.30"]
[Round "5"]
[White "SpeedofLight0"]
[Black "artin10862"]
[Result "1-0"]
[WhiteElo "3031"]
[BlackElo "2858"]
[TimeControl "180+1"]
[EndTime "14:56:07 PDT"]
[Termination "SpeedofLight0 won on time"]

1. Nf3 {[%clk 0:03:00.9]} 1... d5 {[%clk 0:02:57.3]} 2. g3 {[%clk 0:02:59.8]}
2... Bg4 {[%clk 0:02:50.6]} 3. Bg2 {[%clk 0:02:58.7]} 3... Nd7 {[%clk
0:02:50.2]} 4. c4 {[%clk 0:02:57.3]} 4... e6 {[%clk 0:02:44.7]} 5. cxd5 {[%clk
0:02:49.2]} 5... exd5 {[%clk 0:02:44.4]} 6. O-O {[%clk 0:02:49.8]} 6... c6
{[%clk 0:02:43.9]} 7. d3 {[%clk 0:02:49.5]} 7... Ngf6 {[%clk 0:02:43.2]} 8. Nc3
{[%clk 0:02:46.5]} 8... Bc5 {[%clk 0:02:35.7]} 9. e4 {[%clk 0:02:44.1]} 9... O-O
{[%clk 0:02:33.9]} 10. h3 {[%clk 0:02:37.9]} 10... Bxf3 {[%clk 0:02:33.5]} 11.
Bxf3 {[%clk 0:02:38.8]} 11... Ne5 {[%clk 0:02:29.5]} 12. Be2 {[%clk 0:02:35.2]}
12... Bd4 {[%clk 0:02:08.2]} 13. Qc2 {[%clk 0:02:34]} 13... Re8 {[%clk
0:02:04.6]} 14. Kg2 {[%clk 0:02:33.1]} 14... Ng6 {[%clk 0:01:54.5]} 15. Rd1
{[%clk 0:02:26.8]} 15... Qb6 {[%clk 0:01:50.7]} 16. Na4 {[%clk 0:02:26.7]} 16...
Qd8 {[%clk 0:01:38.3]} 17. Nc5 {[%clk 0:02:20.7]} 17... Qb6 {[%clk 0:01:33.3]}
18. Na4 {[%clk 0:02:14.5]} 18... Qd8 {[%clk 0:01:33.2]} 19. Rb1 {[%clk
0:01:57.8]} 19... dxe4 {[%clk 0:01:28.3]} 20. dxe4 {[%clk 0:01:57.4]} 20... Nxe4
{[%clk 0:01:28.9]} 21. Be3 {[%clk 0:01:50.3]} 21... Bxe3 {[%clk 0:00:55.2]} 22.
Rxd8 {[%clk 0:01:49.6]} 22... Raxd8 {[%clk 0:00:56.1]} 23. Rd1 {[%clk 0:01:38]}
23... Nxf2 {[%clk 0:00:27.1]} 24. Rxd8 {[%clk 0:01:31.1]} 24... Rxd8 {[%clk
0:00:28]} 25. Qb3 {[%clk 0:01:23.6]} 25... Re8 {[%clk 0:00:25]} 26. Bc4 {[%clk
0:01:18.4]} 26... Re7 {[%clk 0:00:18.9]} 27. Bxf7+ {[%clk 0:01:12.6]} 27... Rxf7
{[%clk 0:00:19.8]} 28. Qxe3 {[%clk 0:01:12.9]} 28... Nd1 {[%clk 0:00:12.7]} 29.
Qb3 {[%clk 0:01:12.6]} 29... Nf2 {[%clk 0:00:07]} 30. Nc5 {[%clk 0:01:12.5]}
30... h5 {[%clk 0:00:05.9]} 31. Nxb7 {[%clk 0:01:08.3]} 31... Ne4 {[%clk
0:00:05.4]} 32. Qe6 {[%clk 0:01:07.4]} 32... Nf6 {[%clk 0:00:02.4]} 33. Nd6
{[%clk 0:01:06.3]} 33... Nh8 {[%clk 0:00:03]} 34. Nxf7 {[%clk 0:01:02.9]} 34...
Nxf7 {[%clk 0:00:03.9]} 35. Qxc6 {[%clk 0:01:03.4]} 1-0

[Event "Late-Titled-Tuesday-Blitz-April-30-2024"]
[Site "Chess.com"]
[Date "2024.04.30"]
[Round "5"]
[White "AryanTari"]
[Black "Firouzja2003"]
[Result "0-1"]
[WhiteElo "3008"]
[BlackElo "3158"]
[TimeControl "180+1"]
[EndTime "14:56:10 PDT"]
[Termination "Firouzja2003 won by checkmate"]

1. e4 {[%clk 0:03:00.9]} 1... c5 {[%clk 0:02:58.7]} 2. Nf3 {[%clk 0:02:59.5]}
2... d6 {[%clk 0:02:55.8]} 3. Bb5+ {[%clk 0:02:52.2]} 3... Nd7 {[%clk
0:02:55.4]} 4. O-O {[%clk 0:02:47.8]} 4... a6 {[%clk 0:02:55.7]} 5. Bd3 {[%clk
0:02:48]} 5... Ngf6 {[%clk 0:02:55.7]} 6. Re1 {[%clk 0:02:48.3]} 6... e6 {[%clk
0:02:54.8]} 7. Bf1 {[%clk 0:02:46]} 7... b6 {[%clk 0:02:52.1]} 8. c4 {[%clk
0:02:44.3]} 8... Bb7 {[%clk 0:02:52.3]} 9. Nc3 {[%clk 0:02:44.5]} 9... Be7
{[%clk 0:02:52.9]} 10. d4 {[%clk 0:02:38.2]} 10... cxd4 {[%clk 0:02:53.8]} 11.
Nxd4 {[%clk 0:02:39]} 11... O-O {[%clk 0:02:54.2]} 12. f3 {[%clk 0:02:38]} 12...
Rc8 {[%clk 0:02:54.3]} 13. Nc2 {[%clk 0:02:09.5]} 13... Ne5 {[%clk 0:02:53.4]}
14. Ne3 {[%clk 0:02:09.8]} 14... Qc7 {[%clk 0:02:52]} 15. b3 {[%clk 0:02:07.4]}
15... b5 {[%clk 0:02:46.3]} 16. Bb2 {[%clk 0:02:07.8]} 16... bxc4 {[%clk
0:02:42.8]} 17. Nxc4 {[%clk 0:02:06.8]} 17... Nxc4 {[%clk 0:02:43.3]} 18. Bxc4
{[%clk 0:02:05.7]} 18... d5 {[%clk 0:02:43.8]} 19. exd5 {[%clk 0:01:49.6]} 19...
exd5 {[%clk 0:02:44.7]} 20. Bd3 {[%clk 0:01:46.1]} 20... Bd6 {[%clk 0:02:36.5]}
21. h3 {[%clk 0:01:45.4]} 21... Bb4 {[%clk 0:02:00]} 22. Rc1 {[%clk 0:01:30.3]}
22... Qb6+ {[%clk 0:01:59.9]} 23. Kh1 {[%clk 0:01:26.7]} 23... Nh5 {[%clk
0:02:00]} 24. Na4 {[%clk 0:00:43.1]} 24... Qf2 {[%clk 0:01:55.2]} 25. Rxc8
{[%clk 0:00:07.6]} 25... Bxc8 {[%clk 0:01:55]} 26. Re5 {[%clk 0:00:04.8]} 26...
Nf4 {[%clk 0:00:58.9]} 27. Rg5 {[%clk 0:00:04]} 27... f6 {[%clk 0:00:47.9]} 28.
Bd4 {[%clk 0:00:04.1]} 28... Qxa2 {[%clk 0:00:48.1]} 29. Rg3 {[%clk 0:00:04]}
29... Nh5 {[%clk 0:00:48.1]} 30. Rg4 {[%clk 0:00:02.2]} 30... Bxg4 {[%clk
0:00:48.1]} 31. hxg4 {[%clk 0:00:02.4]} 31... Nf4 {[%clk 0:00:48.1]} 32. Bb1
{[%clk 0:00:02.1]} 32... Qxg2# {[%clk 0:00:47.4]} 0-1

[Event "Late-Titled-Tuesday-Blitz-April-30-2024"]
[Site "Chess.com"]
[Date "2024.04.30"]
[Round "5"]
[White "jcmesafischer"]
[Black "2L8IWUN"]
[Result "0-1"]
[WhiteElo "2325"]
[BlackElo "2060"]
[TimeControl "180+1"]
[EndTime "14:56:12 PDT"]
[Termination "2L8IWUN won on time"]

1. e4 {[%clk 0:03:00.9]} 1... c5 {[%clk 0:02:57.8]} 2. Nc3 {[%clk 0:02:59.3]}
2... Nc6 {[%clk 0:02:57.6]} 3. g3 {[%clk 0:02:59.1]} 3... g6 {[%clk 0:02:56.4]}
4. Bg2 {[%clk 0:02:44.3]} 4... Bg7 {[%clk 0:02:56.2]} 5. Nge2 {[%clk 0:02:38.6]}
5... d6 {[%clk 0:02:50.1]} 6. d3 {[%clk 0:02:37.8]} 6... Nd4 {[%clk 0:02:35]} 7.
Be3 {[%clk 0:00:04.3]} 7... e5 {[%clk 0:02:22.3]} 8. h3 {[%clk 0:00:04.9]} 8...
h5 {[%clk 0:02:21.1]} 9. Qd2 {[%clk 0:00:05.5]} 9... Ne7 {[%clk 0:02:09.1]} 10.
Bg5 {[%clk 0:00:05.9]} 10... f6 {[%clk 0:01:58.7]} 11. Be3 {[%clk 0:00:06.5]}
11... Be6 {[%clk 0:01:58.2]} 12. O-O-O {[%clk 0:00:06.2]} 12... b5 {[%clk
0:01:39.2]} 13. f4 {[%clk 0:00:05.7]} 13... b4 {[%clk 0:01:38.6]} 14. Nd5 {[%clk
0:00:06.2]} 14... Qa5 {[%clk 0:01:29.9]} 15. Kb1 {[%clk 0:00:05.9]} 15... Rb8
{[%clk 0:01:27.9]} 16. fxe5 {[%clk 0:00:06.2]} 16... dxe5 {[%clk 0:01:24.9]} 17.
Bxd4 {[%clk 0:00:06.9]} 17... cxd4 {[%clk 0:01:21]} 18. Nc1 {[%clk 0:00:06.5]}
18... Nxd5 {[%clk 0:01:19.4]} 19. exd5 {[%clk 0:00:07.4]} 19... Bxd5 {[%clk
0:01:20.3]} 20. Bxd5 {[%clk 0:00:07.9]} 20... Qxd5 {[%clk 0:01:21.1]} 21. g4
{[%clk 0:00:08.4]} 21... hxg4 {[%clk 0:01:20.1]} 22. Qf2 {[%clk 0:00:07.3]}
22... Rxh3 {[%clk 0:01:15.8]} 23. Rxh3 {[%clk 0:00:07.6]} 23... gxh3 {[%clk
0:01:16.7]} 24. Qg3 {[%clk 0:00:08.2]} 24... Qg2 {[%clk 0:01:15.3]} 25. Qxg2
{[%clk 0:00:05.8]} 25... hxg2 {[%clk 0:01:16.2]} 26. Rg1 {[%clk 0:00:06.2]}
26... Bh6 {[%clk 0:01:14.5]} 27. Ne2 {[%clk 0:00:06.7]} 27... Be3 {[%clk
0:01:13]} 28. Rxg2 {[%clk 0:00:07.6]} 28... g5 {[%clk 0:01:13.3]} 29. Ng3 {[%clk
0:00:07.9]} 29... Kd7 {[%clk 0:01:12.1]} 30. Nf5 {[%clk 0:00:08.5]} 30... Bf4
{[%clk 0:01:10.6]} 31. b3 {[%clk 0:00:08.8]} 31... Rh8 {[%clk 0:01:09.9]} 32. a4
{[%clk 0:00:08.2]} 32... Rh1+ {[%clk 0:01:04.6]} 33. Ka2 {[%clk 0:00:07.7]}
33... Rd1 {[%clk 0:01:02.4]} 34. Ng7 {[%clk 0:00:07.4]} 34... Bd2 {[%clk
0:00:58]} 35. Nf5 {[%clk 0:00:06.8]} 35... Bc3 {[%clk 0:00:57.5]} 0-1

[Event "Late-Titled-Tuesday-Blitz-April-30-2024"]
[Site "Chess.com"]
[Date "2024.04.30"]
[Round "5"]
[White "masterofpuppets2"]
[Black "Ajedrez_con_German"]
[Result "0-1"]
[WhiteElo "2471"]
[BlackElo "2629"]
[TimeControl "180+1"]
[EndTime "14:56:14 PDT"]
[Termination "Ajedrez_con_German won by resignation"]

1. d4 {[%clk 0:03:00.9]} 1... a6 {[%clk 0:02:56.7]} 2. g3 {[%clk 0:02:57.2]}
2... e6 {[%clk 0:02:49.6]} 3. Bg2 {[%clk 0:02:57.3]} 3... Nf6 {[%clk 0:02:48.6]}
4. Nf3 {[%clk 0:02:56.4]} 4... d5 {[%clk 0:02:48.1]} 5. O-O {[%clk 0:02:56.2]}
5... b5 {[%clk 0:02:47.7]} 6. Ne5 {[%clk 0:02:54.6]} 6... Nfd7 {[%clk
0:02:38.2]} 7. f4 {[%clk 0:02:52.8]} 7... c5 {[%clk 0:02:33.1]} 8. c3 {[%clk
0:02:43.4]} 8... Bb7 {[%clk 0:02:23.8]} 9. Nd2 {[%clk 0:02:39.3]} 9... cxd4
{[%clk 0:02:21]} 10. cxd4 {[%clk 0:02:38.7]} 10... Nxe5 {[%clk 0:02:19.8]} 11.
fxe5 {[%clk 0:02:37.2]} 11... Be7 {[%clk 0:02:17.6]} 12. Nf3 {[%clk 0:02:27.1]}
12... O-O {[%clk 0:02:17.3]} 13. h4 {[%clk 0:02:27]} 13... h6 {[%clk 0:02:16.3]}
14. Bf4 {[%clk 0:02:25.2]} 14... Nc6 {[%clk 0:02:13.6]} 15. Qd2 {[%clk
0:02:24.3]} 15... Kh7 {[%clk 0:02:03.4]} 16. Qd3+ {[%clk 0:02:17.8]} 16... Kg8
{[%clk 0:02:03]} 17. Qd2 {[%clk 0:02:17.8]} 17... Kh7 {[%clk 0:02:02]} 18. Kh2
{[%clk 0:01:59.9]} 18... Qa5 {[%clk 0:01:55.5]} 19. Qd3+ {[%clk 0:01:52.4]}
19... Kg8 {[%clk 0:01:52.3]} 20. Qe3 {[%clk 0:01:53]} 20... Kh7 {[%clk
0:01:24.4]} 21. Qd3+ {[%clk 0:01:51.9]} 21... g6 {[%clk 0:00:59.8]} 22. Qe3
{[%clk 0:01:46.8]} 22... h5 {[%clk 0:00:56.4]} 23. Bh6 {[%clk 0:01:38.7]} 23...
Kg8 {[%clk 0:00:45.6]} 24. Bxf8 {[%clk 0:01:32.8]} 24... Bxf8 {[%clk 0:00:46.1]}
25. Ng5 {[%clk 0:01:31.2]} 25... Bh6 {[%clk 0:00:46.5]} 26. Rxf7 {[%clk
0:01:13.2]} 26... Bxg5 {[%clk 0:00:46.3]} 27. Qxg5 {[%clk 0:01:13.3]} 27... Kxf7
{[%clk 0:00:47]} 28. Rf1+ {[%clk 0:01:12.8]} 28... Ke8 {[%clk 0:00:27.8]} 29.
Qxg6+ {[%clk 0:01:11.8]} 29... Kd7 {[%clk 0:00:28.4]} 30. Rf7+ {[%clk
0:01:00.2]} 30... Ne7 {[%clk 0:00:27.7]} 31. Bh3 {[%clk 0:00:59.6]} 31... Qb6
{[%clk 0:00:27.4]} 32. Rf6 {[%clk 0:00:29.1]} 32... Nxg6 {[%clk 0:00:25.4]} 0-1

[Event "Late-Titled-Tuesday-Blitz-April-30-2024"]
[Site "Chess.com"]
[Date "2024.04.30"]
[Round "5"]
[White "Bryanl106"]
[Black "Real_taiatai"]
[Result "0-1"]
[WhiteElo "2681"]
[BlackElo "2500"]
[TimeControl "180+1"]
[EndTime "14:56:15 PDT"]
[Termination "Real_taiatai won by resignation"]

1. e4 {[%clk 0:03:00.9]} 1... c5 {[%clk 0:02:58.7]} 2. Nf3 {[%clk 0:03:01.1]}
2... e6 {[%clk 0:02:58.4]} 3. g3 {[%clk 0:03:01.6]} 3... Nc6 {[%clk 0:02:58.3]}
4. Bg2 {[%clk 0:03:02.1]} 4... g6 {[%clk 0:02:57.9]} 5. O-O {[%clk 0:03:00.3]}
5... Bg7 {[%clk 0:02:58.2]} 6. c3 {[%clk 0:03:00.9]} 6... Nge7 {[%clk
0:02:58.1]} 7. d4 {[%clk 0:03:01.1]} 7... cxd4 {[%clk 0:02:58.3]} 8. cxd4 {[%clk
0:03:02]} 8... d5 {[%clk 0:02:58.7]} 9. e5 {[%clk 0:03:02]} 9... O-O {[%clk
0:02:59.2]} 10. a3 {[%clk 0:02:57.1]} 10... b6 {[%clk 0:02:58.2]} 11. Re1 {[%clk
0:02:56.5]} 11... Ba6 {[%clk 0:02:56.8]} 12. Nc3 {[%clk 0:02:56.5]} 12... Rc8
{[%clk 0:02:56.7]} 13. h4 {[%clk 0:02:52.1]} 13... Na5 {[%clk 0:02:48.1]} 14. h5
{[%clk 0:02:50.1]} 14... Bc4 {[%clk 0:02:45.4]} 15. h6 {[%clk 0:02:45.8]} 15...
Bh8 {[%clk 0:02:44.9]} 16. Bg5 {[%clk 0:02:46]} 16... Bb3 {[%clk 0:02:41.2]} 17.
Qd2 {[%clk 0:02:44.1]} 17... Nc4 {[%clk 0:02:34.8]} 18. Qe2 {[%clk 0:02:43.3]}
18... Qd7 {[%clk 0:02:31.8]} 19. Nd2 {[%clk 0:02:33]} 19... Nxd2 {[%clk
0:02:30.8]} 20. Qxd2 {[%clk 0:02:33.9]} 20... Nc6 {[%clk 0:02:28.7]} 21. Qf4
{[%clk 0:02:24.7]} 21... Bc2 {[%clk 0:01:22.9]} 22. Bf6 {[%clk 0:02:19]} 22...
Bf5 {[%clk 0:01:22.7]} 23. Qg5 {[%clk 0:02:11.8]} 23... Nxd4 {[%clk 0:00:59.5]}
24. Bxh8 {[%clk 0:02:10.8]} 24... f6 {[%clk 0:00:58.1]} 25. Bxf6 {[%clk
0:02:10.7]} 25... Nc2 {[%clk 0:00:43]} 26. Rad1 {[%clk 0:01:52.3]} 26... Nxe1
{[%clk 0:00:42.9]} 27. Rxe1 {[%clk 0:01:53.2]} 27... Rc4 {[%clk 0:00:39.3]} 28.
Ne2 {[%clk 0:01:41.2]} 28... Rfc8 {[%clk 0:00:30.4]} 29. Nf4 {[%clk 0:01:38.9]}
29... Kf7 {[%clk 0:00:21]} 30. g4 {[%clk 0:01:34.7]} 30... Be4 {[%clk
0:00:17.2]} 31. f3 {[%clk 0:01:32.2]} 31... Rc1 {[%clk 0:00:15.6]} 32. Rxc1
{[%clk 0:01:32.1]} 32... Rxc1+ {[%clk 0:00:16.3]} 33. Kh2 {[%clk 0:01:33]} 33...
Bb1 {[%clk 0:00:14.6]} 34. Nxe6 {[%clk 0:01:32.3]} 34... Rc2 {[%clk 0:00:13.3]}
35. Nd8+ {[%clk 0:01:31.9]} 35... Ke8 {[%clk 0:00:13.5]} 36. e6 {[%clk
0:01:25.6]} 36... Qd6+ {[%clk 0:00:13.4]} 37. Be5 {[%clk 0:01:20.4]} 37... Qxd8
{[%clk 0:00:13.5]} 38. Qe3 {[%clk 0:01:10.7]} 38... Qh4+ {[%clk 0:00:13.3]} 39.
Kg1 {[%clk 0:01:11.4]} 39... d4 {[%clk 0:00:09.4]} 40. Bxd4 {[%clk 0:01:10.5]}
40... Qg3 {[%clk 0:00:08.6]} 41. Qf2 {[%clk 0:01:08.9]} 41... Rxf2 {[%clk
0:00:08.6]} 42. Bxf2 {[%clk 0:01:09.8]} 42... Qe5 {[%clk 0:00:08.6]} 43. e7
{[%clk 0:01:07.7]} 43... Qxe7 {[%clk 0:00:08.6]} 44. f4 {[%clk 0:01:07]} 44...
Qe2 {[%clk 0:00:08.9]} 45. g5 {[%clk 0:01:06.2]} 45... Be4 {[%clk 0:00:07.7]}
0-1

[Event "Late-Titled-Tuesday-Blitz-April-30-2024"]
[Site "Chess.com"]
[Date "2024.04.30"]
[Round "5"]
[White "djano"]
[Black "NajdorfPlayerc5"]
[Result "0-1"]
[WhiteElo "2610"]
[BlackElo "2480"]
[TimeControl "180+1"]
[EndTime "14:56:15 PDT"]
[Termination "NajdorfPlayerc5 won by resignation"]

1. Nf3 {[%clk 0:03:00.9]} 1... Nf6 {[%clk 0:02:51.9]} 2. g3 {[%clk 0:03:00.9]}
2... b6 {[%clk 0:02:52.1]} 3. Bg2 {[%clk 0:03:01.1]} 3... Bb7 {[%clk 0:02:52.7]}
4. O-O {[%clk 0:03:01.7]} 4... e6 {[%clk 0:02:53.3]} 5. c4 {[%clk 0:03:01]} 5...
Be7 {[%clk 0:02:53.4]} 6. b3 {[%clk 0:03:00]} 6... O-O {[%clk 0:02:53.1]} 7. Bb2
{[%clk 0:03:00.5]} 7... d5 {[%clk 0:02:53.6]} 8. d4 {[%clk 0:02:59.2]} 8... Nbd7
{[%clk 0:02:46.2]} 9. cxd5 {[%clk 0:02:58.8]} 9... exd5 {[%clk 0:02:46.1]} 10.
Nc3 {[%clk 0:02:56]} 10... a6 {[%clk 0:02:46.1]} 11. e3 {[%clk 0:02:54.6]} 11...
Bd6 {[%clk 0:02:41]} 12. Qc1 {[%clk 0:02:51]} 12... Rc8 {[%clk 0:02:39.5]} 13.
Rd1 {[%clk 0:02:43]} 13... Qe7 {[%clk 0:02:38.9]} 14. Nh4 {[%clk 0:02:40.4]}
14... g6 {[%clk 0:02:01.6]} 15. Qd2 {[%clk 0:02:40.2]} 15... Ne4 {[%clk
0:01:58.4]} 16. Nxe4 {[%clk 0:02:35]} 16... dxe4 {[%clk 0:01:59.3]} 17. Bh3
{[%clk 0:02:27.1]} 17... f5 {[%clk 0:01:55.3]} 18. Rac1 {[%clk 0:02:19]} 18...
Nf6 {[%clk 0:01:40.9]} 19. Rc2 {[%clk 0:02:12.1]} 19... Nd5 {[%clk 0:01:40]} 20.
Ba1 {[%clk 0:01:54.8]} 20... Qe6 {[%clk 0:01:35.6]} 21. Bf1 {[%clk 0:01:44.7]}
21... g5 {[%clk 0:01:29.6]} 22. Ng2 {[%clk 0:01:45]} 22... f4 {[%clk 0:01:17.5]}
23. Bc4 {[%clk 0:01:42.3]} 23... f3 {[%clk 0:01:12.8]} 24. Ne1 {[%clk 0:01:40]}
24... h5 {[%clk 0:01:11.4]} 25. Rdc1 {[%clk 0:01:30.5]} 25... h4 {[%clk
0:01:09.8]} 26. Bf1 {[%clk 0:01:12]} 26... hxg3 {[%clk 0:01:02.9]} 27. hxg3
{[%clk 0:01:12.8]} 27... Kf7 {[%clk 0:00:41.6]} 28. Rc6 {[%clk 0:01:07.7]} 28...
Bxc6 {[%clk 0:00:38.1]} 29. Rxc6 {[%clk 0:01:06.2]} 29... Rh8 {[%clk 0:00:35.9]}
30. Nxf3 {[%clk 0:00:46.4]} 30... exf3 {[%clk 0:00:31.1]} 31. Qd1 {[%clk
0:00:41.4]} 31... g4 {[%clk 0:00:27.1]} 32. Bc4 {[%clk 0:00:41.5]} 32... Qh6
{[%clk 0:00:24]} 33. Bxd5+ {[%clk 0:00:40.7]} 33... Ke7 {[%clk 0:00:24.2]} 34.
Bxf3 {[%clk 0:00:40.3]} 34... gxf3 {[%clk 0:00:22.1]} 35. Qxf3 {[%clk
0:00:41.2]} 35... Qh2+ {[%clk 0:00:21.9]} 36. Kf1 {[%clk 0:00:41.4]} 36... Qh1+
{[%clk 0:00:22.8]} 37. Qxh1 {[%clk 0:00:41]} 37... Rxh1+ {[%clk 0:00:23.7]} 38.
Ke2 {[%clk 0:00:41.8]} 38... Rxa1 {[%clk 0:00:24]} 39. Kf3 {[%clk 0:00:41.6]}
39... Rxa2 {[%clk 0:00:24.1]} 0-1

[Event "Late-Titled-Tuesday-Blitz-April-30-2024"]
[Site "Chess.com"]
[Date "2024.04.30"]
[Round "5"]
[White "bascheyaro"]
[Black "AldokhinIvan"]
[Result "1-0"]
[WhiteElo "2850"]
[BlackElo "2658"]
[TimeControl "180+1"]
[EndTime "14:56:18 PDT"]
[Termination "bascheyaro won on time"]

1. d4 {[%clk 0:02:52.3]} 1... Nf6 {[%clk 0:02:56.6]} 2. c4 {[%clk 0:02:52.4]}
2... g6 {[%clk 0:02:57.1]} 3. Nf3 {[%clk 0:02:52.8]} 3... Bg7 {[%clk 0:02:57.5]}
4. Nc3 {[%clk 0:02:53.5]} 4... O-O {[%clk 0:02:58.2]} 5. Bf4 {[%clk 0:02:53.9]}
5... d6 {[%clk 0:02:48.5]} 6. e3 {[%clk 0:02:53.8]} 6... c5 {[%clk 0:02:47.5]}
7. Be2 {[%clk 0:02:53.3]} 7... cxd4 {[%clk 0:02:47.4]} 8. exd4 {[%clk
0:02:53.5]} 8... Nbd7 {[%clk 0:02:36.6]} 9. O-O {[%clk 0:02:53.1]} 9... Re8
{[%clk 0:02:37.2]} 10. Re1 {[%clk 0:02:52.4]} 10... e5 {[%clk 0:02:25.8]} 11.
dxe5 {[%clk 0:02:52.4]} 11... dxe5 {[%clk 0:02:20.5]} 12. Nxe5 {[%clk
0:02:52.4]} 12... Qb6 {[%clk 0:02:19.5]} 13. Nxd7 {[%clk 0:02:49.9]} 13... Bxd7
{[%clk 0:02:19.4]} 14. Qb3 {[%clk 0:02:44.5]} 14... Qd4 {[%clk 0:01:58.8]} 15.
Bg3 {[%clk 0:02:31.7]} 15... Bc6 {[%clk 0:01:54.4]} 16. Rad1 {[%clk 0:02:27.7]}
16... Qc5 {[%clk 0:01:53.2]} 17. Nd5 {[%clk 0:02:05.1]} 17... Ne4 {[%clk
0:01:52.2]} 18. Bf3 {[%clk 0:01:53.5]} 18... Bxd5 {[%clk 0:01:30]} 19. cxd5
{[%clk 0:01:52.1]} 19... Nxg3 {[%clk 0:01:21]} 20. hxg3 {[%clk 0:01:52.2]} 20...
Bd4 {[%clk 0:01:13.2]} 21. Rf1 {[%clk 0:01:52.3]} 21... Re7 {[%clk 0:00:51.7]}
22. Rd2 {[%clk 0:01:32.5]} 22... Rae8 {[%clk 0:00:49.9]} 23. Qd1 {[%clk
0:01:30.7]} 23... Be5 {[%clk 0:00:43.3]} 24. d6 {[%clk 0:01:27.7]} 24... Re6
{[%clk 0:00:19]} 25. d7 {[%clk 0:01:26.5]} 25... Rd8 {[%clk 0:00:18.4]} 26. Rc2
{[%clk 0:01:05.4]} 26... Qb6 {[%clk 0:00:15.4]} 27. Rc8 {[%clk 0:00:56.3]} 27...
Re7 {[%clk 0:00:12.9]} 28. Bxb7 {[%clk 0:00:44.9]} 28... Rxd7 {[%clk 0:00:07.3]}
29. Qxd7 {[%clk 0:00:43.5]} 1-0